bitfinex-derivatives/quotes_ETHF0:USTF0_20250902
["timestamp","ask_amount","ask_price","bid_price","bid_amount"]
[1756835143459,0.4468,4311.5,4311.4,0.30919264]
[1756835143956,0.6563,4311.5,4311.4,0.30919264]
[1756835144149,0.8557,4311.5,4311.4,0.30919264]
[1756835144351,0.4089,4311.1,4311.0,3.2078]
[1756835144547,0.7286,4311.1,4311.0,3.51707754]
[1756835145564,0.7286,4311.1,4311.0,3.52067754]
[1756835145864,0.3197,4311.1,4311.0,3.52187754]
[1756835146064,0.3197,4311.4,4311.0,3.52187754]
[1756835146265,0.6563,4311.5,4311.4,0.0018]
[1756835146770,0.6563,4311.5,4311.4,0.0036]
[1756835147062,0.8557,4311.5,4311.0,3.2078]
[1756835147268,0.2095,4311.2,4311.1,0.31129201]
[1756835147463,0.5292,4311.2,4311.1,0.55309201]
[1756835147857,0.5292,4311.2,4311.1,0.31309201]
[1756835148063,0.3197,4311.9,4311.1,0.55309201]
[1756835148263,0.5292,4311.9,4311.8,0.0018]
[1756835148568,0.7286,4311.9,4311.8,0.0018]
[1756835150071,0.7286,4311.9,4311.4,0.24]
[1756835150269,0.7286,4311.9,4311.5,0.30954428]
[1756835150464,0.7286,4311.9,4311.4,0.24]
[1756835150465,0.3366,4311.5,4311.4,0.2418]
[1756835150668,0.3366,4311.5,4311.4,0.5531533]
[1756835150669,0.6563,4311.5,4311.4,0.5531533]
[1756835150863,0.8557,4311.5,4311.4,0.3095533]
[1756835152868,0.8557,4311.5,4311.4,0.3113533]
[1756835153073,0.8557,4311.5,4311.4,0.3131533]
[1756835153274,0.6563,4311.5,4311.4,0.3131533]
[1756835153666,0.6563,4311.5,4311.4,0.3135852]
[1756835154268,0.125,4312.0,4311.4,0.3135852]
[1756835154470,0.6542,4312.0,4311.9,0.0036]
[1756835154669,0.3197,4312.0,4311.9,0.3135852]
[1756835155272,0.5292,4312.0,4311.9,0.3135852]
[1756835155473,0.8557,4312.0,4311.9,0.3099852]
[1756835157775,0.8557,4312.0,4311.9,0.3117852]
[1756835158277,0.8557,4312.0,4311.9,0.3135852]
[1756835158476,0.8557,4312.0,4311.9,0.3099852]
[1756835158868,0.8557,4312.0,4311.9,0.30961186]
[1756835159067,0.8557,4312.0,4311.6,0.24]
[1756835159368,0.8557,4312.0,4311.9,0.0018]
[1756835159575,0.8557,4312.0,4311.9,0.31141236]
[1756835160070,0.8557,4312.0,4311.9,0.31321236]
[1756835160273,0.3197,4312.5,4311.9,7.75412236]
[1756835160477,0.3197,4313.0,4312.4,3.62637]
[1756835160773,0.3197,4313.3,4312.6,0.0012]
[1756835160976,0.3197,4313.3,4312.7,0.30942741]
[1756835161166,3.2078,4313.4,4312.8,0.30942741]
[1756835161363,0.3197,4313.3,4312.9,0.54942741]
[1756835161566,3.2078,4313.4,4313.0,0.30942741]
[1756835161768,0.3197,4313.3,4313.1,0.30942741]
[1756835161971,0.3197,4313.3,4312.8,0.24]
[1756835162275,0.4468,4313.0,4312.9,0.30913965]
[1756835162576,0.4468,4312.5,4312.4,3.2078]
[1756835162875,0.3197,4312.5,4312.4,3.51685548]
[1756835163577,0.4468,4313.0,4312.4,3.51685548]
[1756835163877,0.3197,4313.3,4312.5,0.30905548]
[1756835164069,0.3197,4313.3,4312.6,0.30905548]
[1756835164274,3.2078,4313.4,4312.7,0.54905548]
[1756835164465,0.3197,4313.3,4312.8,0.30905548]
[1756835164671,0.1271,4313.5,4313.1,3.2078]
[1756835164972,0.3197,4313.4,4313.2,0.54905548]
[1756835165277,0.3197,4313.4,4313.3,0.30905548]
[1756835165467,0.3197,4313.9,4313.3,0.31005548]
[1756835165672,0.1271,4314.0,4313.6,3.2078]
[1756835165872,0.3197,4313.9,4313.7,0.54905548]
[1756835166175,0.3197,4313.9,4313.8,0.31320583]
[1756835168779,0.5292,4313.9,4313.8,0.31320583]
[1756835169172,0.5292,4313.9,4313.7,0.24]
[1756835169368,0.3197,4313.8,4313.7,0.2434]
[1756835169580,0.3197,4314.4,4314.3,0.0034]
[1756835169777,0.3197,4314.4,4314.3,3.4512]
[1756835172179,0.7355,4314.4,4314.3,3.2112]
[1756835172375,0.7355,4314.4,4314.3,3.2078]
[1756835172575,0.7355,4314.4,4313.3,40.99036687]
[1756835172576,0.4158,4314.2,4314.1,0.239]
[1756835172782,0.7122,4314.2,4314.1,0.239]
[1756835173278,0.1266,4314.5,4313.6,3.2078]
[1756835173279,0.1266,4314.0,4313.6,3.2078]
[1756835173482,0.1266,4314.0,4313.7,0.239]
[1756835173681,0.1266,4314.0,4313.6,3.2078]
[1756835173883,0.2964,4313.9,4313.8,0.239]
[1756835174284,0.2964,4313.9,4313.6,3.2078]
[1756835174485,0.2964,4313.9,4313.7,0.239]
[1756835174685,0.1266,4314.0,4313.7,0.239]
[1756835174884,0.2964,4313.9,4313.8,0.239]
[1756835175071,0.1266,4314.0,4313.6,3.2078]
[1756835175277,0.2964,4313.9,4313.7,0.239]
[1756835175980,0.2964,4313.8,4313.3,40.8]
[1756835176286,0.8388,4313.5,4313.4,0.239]
[1756835176480,0.7122,4313.4,4313.3,0.239]
[1756835177286,0.7122,4313.4,4313.3,0.241]
[1756835177785,0.7122,4313.4,4313.3,0.239]
[1756835177985,0.4158,4313.4,4313.3,0.239]
[1756835178379,0.4158,4313.4,4313.3,0.241]
[1756835178585,0.2964,4313.9,4313.3,0.243]
[1756835178778,0.5029,4313.9,4313.8,0.002]
[1756835179284,0.5029,4313.9,4313.8,0.004]
[1756835180690,0.5029,4313.9,4313.8,0.31672849]
[1756835180882,0.5029,4313.9,4313.8,0.004]
[1756835181082,0.7122,4313.9,4313.8,0.002]
[1756835181290,0.7122,4313.9,4313.6,0.239]
[1756835181489,0.7122,4313.9,4313.7,0.31280548]
[1756835181690,0.7122,4313.9,4313.6,0.239]
[1756835181892,0.7122,4313.9,4313.7,0.31271555]
[1756835182085,0.2964,4313.8,4313.5,3.2078]
[1756835182285,0.4158,4313.7,4313.6,0.31469983]
[1756835182491,0.7122,4313.7,4313.6,0.31469983]
[1756835182688,0.7122,4313.7,4313.6,0.31269983]
[1756835183085,0.2964,4313.6,4313.5,3.2078]
[1756835183393,0.7122,4313.6,4313.5,0.31288492]
[1756835183590,0.1266,4313.5,4313.3,0.239]
[1756835183787,0.7122,4313.4,4313.3,0.239]
[1756835184090,0.7122,4313.4,4313.3,0.55204312]
[1756835184390,0.7122,4313.4,4312.8,3.2078]
[1756835184391,0.7122,4312.9,4312.8,3.2078]
[1756835186389,0.7122,4312.4,4312.3,3.2078]
[1756835186591,0.7122,4312.4,4311.5,0.3071]
[1756835186592,0.2964,4312.3,4311.8,3.2078]
[1756835186790,0.7122,4311.9,4311.8,3.2078]
[1756835188086,0.7122,4311.9,4311.8,3.4101]
[1756835188293,0.7122,4311.9,4311.8,3.6245]
[1756835188492,0.7122,4311.9,4311.8,3.2078]
[1756835188795,0.7122,4311.9,4311.8,3.4468]
[1756835189294,0.7122,4311.9,4311.8,3.2078]
[1756835191392,0.7122,4311.9,4311.8,3.6245]
[1756835191596,0.2964,4311.9,4311.8,3.9316]
[1756835191792,0.2964,4311.9,4311.8,4.1706]
[1756835193087,0.1266,4312.5,4311.8,4.1706]
[1756835193293,0.2964,4312.4,4311.8,4.1706]
[1756835193491,0.2065,4312.4,4312.3,0.4167]
[1756835193696,0.5029,4312.4,4312.3,0.4167]
[1756835193897,0.7122,4312.4,4312.3,0.4167]
[1756835194093,0.7122,4312.4,4312.3,0.2023]
[1756835194300,0.7122,4312.4,4312.1,0.239]
[1756835194587,0.7122,4312.1,4312.0,0.239]
[1756835194896,0.7122,4312.1,4312.0,0.4413]
[1756835195990,0.7122,4312.1,4312.0,0.6557]
[1756835196194,3.2078,4312.8,4312.0,0.9628]
[1756835196399,0.2964,4312.7,4312.0,0.9628]
[1756835196800,3.2078,4312.8,4312.0,0.9628]
[1756835197003,0.2964,4312.7,4312.0,0.9628]
[1756835197401,3.2078,4312.8,4312.0,0.9628]
[1756835197702,0.2964,4312.7,4312.0,0.9628]
[1756835199700,3.2078,4312.8,4312.0,0.9628]
[1756835199901,0.2964,4312.7,4312.0,0.9628]
[1756835200094,0.2964,4312.7,4312.0,0.6557]
[1756835200291,0.5029,4312.7,4312.6,0.4167]
[1756835200894,0.5029,4312.7,4312.6,0.7238]
[1756835201499,0.3203,4313.3,4312.6,0.7238]
[1756835202202,3.2078,4313.4,4312.6,0.7238]
[1756835202401,0.3203,4313.3,4312.6,0.7238]
[1756835202604,0.3203,4313.3,4312.7,0.3104]
[1756835202806,0.3203,4313.3,4313.2,0.4027]
[1756835202999,0.5322,4313.3,4313.2,0.7131]
[1756835203599,0.7301,4313.3,4313.2,0.4027]
[1756835204309,0.3203,4313.2,4312.9,3.4468]
[1756835204598,0.7301,4313.0,4312.9,3.6537]
[1756835204804,0.7301,4313.0,4312.9,3.4147]
[1756835205005,0.8566,4313.0,4312.9,3.2078]
[1756835205199,0.8566,4313.0,4312.3,0.239]
[1756835205393,0.2119,4312.2,4312.1,0.6417]
[1756835205594,0.3203,4312.4,4312.1,0.6417]
[1756835205801,0.3203,4312.4,4312.3,0.4027]
[1756835206104,0.3203,4312.4,4312.3,0.7131]
[1756835206406,0.7301,4312.4,4312.3,0.4027]
[1756835207806,0.7301,4312.4,4312.3,0.2069]
[1756835208100,0.7301,4312.4,4311.9,3.5182]
[1756835208305,0.3203,4312.0,4311.9,3.2078]
[1756835208509,0.1265,4313.0,4311.9,3.9209]
[1756835208702,0.23189,4312.9,4311.9,3.9209]
[1756835208908,0.3203,4312.9,4311.9,3.9209]
[1756835209115,0.1265,4313.0,4311.9,3.9209]
[1756835209309,0.5322,4312.0,4311.9,3.8495]
[1756835209810,0.5322,4312.0,4311.9,4.1599]
[1756835211807,0.3203,4311.9,4311.4,3.2078]
[1756835212005,0.2119,4311.5,4311.4,3.6105]
[1756835212306,0.5322,4311.5,4311.4,3.8495]
[1756835212508,0.5322,4311.5,4311.4,4.1599]
[1756835215407,0.7301,4311.5,4311.4,3.8495]
[1756835215809,0.3203,4311.4,4310.9,3.2078]
[1756835216006,0.7301,4311.1,4311.0,0.4459]
[1756835216205,0.7301,4311.1,4311.0,0.6417]
[1756835216616,0.7301,4311.1,4311.0,0.2069]
[1756835216806,0.7301,4311.1,4311.0,0.4027]
[1756835217605,0.7301,4311.1,4311.0,0.7131]
[1756835218107,0.3203,4311.0,4310.9,3.2078]
[1756835218307,0.7301,4311.0,4310.9,3.4147]
[1756835220107,0.7301,4311.0,4310.9,3.6105]
[1756835220307,0.7301,4311.0,4310.9,3.4147]
[1756835220503,3.43457355,4311.8,4310.9,3.9209]
[1756835220809,3.2078,4312.4,4311.5,0.7131]
[1756835221013,0.3203,4312.2,4311.5,0.9521]
[1756835221507,3.2078,4312.4,4311.5,0.9521]
[1756835221508,0.3203,4312.4,4311.5,0.9521]
[1756835221710,0.5322,4311.6,4311.5,0.6417]
[1756835222012,0.7301,4311.6,4311.5,0.4027]
[1756835222515,0.3203,4311.5,4311.4,3.4147]
[1756835222711,0.5322,4311.5,4311.4,3.6105]
[1756835223308,0.5322,4311.5,4311.4,3.9209]
[1756835223910,0.7301,4311.5,4311.4,3.6105]
[1756835224217,0.8566,4311.5,4311.4,3.2078]
[1756835224410,0.3203,4311.4,4310.8,3.2078]
[1756835224711,0.7301,4310.9,4310.8,3.6537]
[1756835224914,0.7301,4310.9,4310.8,3.4147]
[1756835225315,0.7301,4310.9,4310.8,3.2078]
[1756835225507,0.7301,4310.9,4310.0,33.8168]
[1756835225707,0.23199,4310.9,4310.0,3.2078]
[1756835225908,0.7301,4310.1,4310.0,3.4147]
[1756835227013,0.7301,4310.1,4310.0,3.2078]
[1756835227413,0.96212,4310.1,4310.0,3.2078]
[1756835227913,0.7301,4310.1,4310.0,3.2078]
[1756835228108,0.7301,4310.1,4309.1,0.3104]
[1756835228109,0.4468,4310.0,4309.2,3.2078]
[1756835228315,0.5322,4309.3,4309.2,3.8495]
[1756835228515,0.5322,4309.3,4308.7,0.49663079]
[1756835228516,0.3203,4309.2,4308.7,3.2078]
[1756835228712,3.2078,4309.4,4308.7,3.2078]
[1756835229014,0.3203,4309.2,4308.7,3.2078]
[1756835229216,0.34787,4309.3,4308.7,3.2078]
[1756835229413,0.1158,4309.3,4308.7,3.2078]
[1756835229610,0.3203,4309.1,4308.7,3.2078]
[1756835229816,0.3203,4309.2,4308.8,0.3104]
[1756835230013,0.3203,4309.2,4308.7,3.2078]
[1756835230208,0.3203,4309.2,4308.8,0.3104]
[1756835230416,0.1158,4309.3,4308.9,0.3104]
[1756835230920,0.3203,4309.2,4308.9,0.3104]
[1756835231115,0.3203,4309.2,4308.9,0.2941]
[1756835231314,0.3203,4309.2,4308.8,0.239]
[1756835231907,0.301,4309.2,4308.9,0.2941]
[1756835232512,0.1158,4309.3,4308.9,0.2941]
[1756835232716,0.1158,4309.3,4308.9,0.4177]
[1756835233014,3.2078,4310.1,4309.3,0.1985]
[1756835233317,0.301,4310.0,4309.4,0.239]
[1756835233522,0.301,4310.0,4309.4,0.4375]
[1756835233822,0.301,4309.9,4309.5,0.239]
[1756835234117,3.2078,4310.1,4309.6,0.1985]
[1756835234417,3.2078,4310.1,4309.2,3.2078]
[1756835234613,0.301,4310.0,4309.3,0.4375]
[1756835234815,3.2078,4310.1,4309.4,0.1985]
[1756835235014,3.2078,4310.1,4309.8,0.41761]
[1756835235215,3.2078,4310.1,4309.8,0.65661]
[1756835235617,0.301,4310.3,4309.9,0.4176]
[1756835235811,0.301,4310.9,4310.1,0.41758]
[1756835236017,0.301,4310.9,4310.3,0.1985]
[1756835236212,0.301,4310.9,4310.3,0.61606]
[1756835236418,0.301,4310.9,4310.3,0.1985]
[1756835236718,0.301,4310.4,4309.7,3.2078]
[1756835236923,0.1165,4310.0,4309.7,3.2078]
[1756835237418,0.301,4309.9,4309.7,3.2078]
[1756835237918,0.1165,4310.0,4309.7,3.2078]
[1756835238124,0.1165,4310.5,4309.8,0.1985]
[1756835238312,0.301,4310.4,4310.0,0.1985]
[1756835238513,0.301,4310.5,4310.0,0.1985]
[1756835238717,0.301,4310.9,4310.0,0.1985]
[1756835239927,0.301,4310.8,4309.9,0.239]
[1756835240321,3.2078,4310.9,4309.7,3.4468]
[1756835240516,0.301,4310.3,4309.2,3.2078]
[1756835240726,0.301,4310.3,4309.3,0.1985]
[1756835241318,0.301,4310.3,4309.4,0.41765]
[1756835241525,0.301,4310.3,4309.5,0.4375]
[1756835242423,0.301,4310.4,4309.5,0.4375]
[1756835242837,0.301,4310.4,4309.6,0.41763]
[1756835243126,0.301,4310.4,4309.8,0.1985]
[1756835244221,0.301,4310.4,4309.9,0.239]
[1756835244423,0.301,4310.7,4310.1,0.1985]
[1756835245027,0.301,4310.7,4309.9,0.239]
[1756835245531,0.301,4310.7,4309.7,3.4063]
[1756835245830,0.301,4310.6,4309.8,0.239]
[1756835246127,0.1165,4310.5,4309.2,3.2078]
[1756835246431,0.301,4310.4,4309.4,0.41765]
[1756835246731,0.301,4310.3,4309.3,0.85516]
[1756835246926,0.301,4310.4,4309.3,0.4375]
[1756835247128,0.1165,4310.5,4309.3,0.85516]
[1756835247332,0.301,4310.4,4309.3,0.85516]
[1756835247529,0.1165,4310.5,4309.3,0.4375]
[1756835247728,0.301,4310.4,4309.3,0.4375]
[1756835247937,0.301,4310.4,4309.2,3.2078]
[1756835248122,0.301,4310.4,4309.3,0.239]
[1756835248634,0.301,4310.4,4309.4,0.239]
[1756835249333,0.5218,4309.5,4309.2,3.2078]
[1756835249632,0.1165,4309.0,4308.7,3.2078]
[1756835250227,0.1165,4309.0,4308.1,3.2078]
[1756835250533,0.1165,4309.0,4308.2,0.31249366]
[1756835250727,0.1165,4309.0,4308.1,3.4468]
[1756835250728,0.301,4308.9,4308.3,0.31249366]
[1756835250924,0.301,4308.9,4308.4,0.31249366]
[1756835251129,0.1165,4309.0,4308.5,0.31249366]
[1756835251325,0.1165,4309.0,4308.6,0.31249366]
[1756835251528,0.301,4308.9,4308.7,0.31249366]
[1756835251736,0.301,4308.9,4308.8,0.31249366]
[1756835253139,0.301,4309.9,4308.9,0.1985]
[1756835253338,0.301,4309.9,4309.0,0.55149366]
[1756835253339,0.59163306,4309.8,4309.0,0.55149366]
[1756835253538,0.301,4309.9,4309.2,3.4063]
[1756835253738,0.301,4309.9,4309.3,0.31249366]
[1756835253941,0.239,4310.3,4309.4,0.31249366]
[1756835254148,0.89259371,4310.2,4309.5,0.31249366]
[1756835254342,0.301,4310.2,4309.6,0.31249366]
[1756835254538,0.301,4310.2,4309.7,0.31249366]
[1756835254742,0.301,4310.2,4309.8,0.31249366]
[1756835254935,0.1165,4310.0,4309.9,0.31249366]
[1756835255131,0.301,4310.0,4309.9,0.31249366]
[1756835255338,3.2078,4310.6,4309.9,0.31249366]
[1756835255537,0.301,4310.4,4310.0,0.31249366]
[1756835255742,0.4175,4310.5,4310.1,0.31249366]
[1756835255944,0.4175,4310.5,4310.2,0.31249366]
[1756835256140,0.4175,4310.5,4310.3,0.31249366]
[1756835256341,0.301,4310.4,4309.7,0.216]
[1756835256543,0.301,4310.4,4309.8,0.31031786]
[1756835256739,0.1165,4310.5,4309.9,0.31031786]
[1756835256947,0.301,4310.4,4310.0,0.31031786]
[1756835257138,0.301,4310.4,4310.1,0.31031786]
[1756835257445,0.1165,4310.5,4310.2,0.31031786]
[1756835257646,0.301,4310.4,4310.3,0.31031786]
[1756835258840,0.7063,4309.8,4309.7,3.2078]
[1756835259038,0.301,4310.4,4309.7,4.12482415]
[1756835259239,0.301,4310.4,4310.2,0.4113]
[1756835259446,0.301,4310.4,4310.3,0.71852415]
[1756835259848,0.301,4310.9,4310.3,0.30722415]
[1756835260143,0.4175,4310.5,4310.4,0.30722415]
[1756835260448,0.4175,4310.5,4309.3,0.239]
[1756835260646,0.4175,4310.5,4309.4,0.30728543]
[1756835260844,0.1165,4310.0,4309.5,0.30728543]
[1756835261144,0.301,4309.9,4309.6,0.30728543]
[1756835261345,0.301,4309.9,4309.7,0.30728543]
[1756835261542,3.4468,4309.9,4309.2,3.2078]
[1756835261848,3.4468,4309.9,4308.7,3.2078]
[1756835261849,0.3147,4309.6,4308.7,3.2078]
[1756835262041,3.4468,4309.9,4308.7,3.2078]
[1756835262243,0.3147,4309.7,4308.7,3.2078]
[1756835262547,0.82456816,4309.8,4308.7,3.2078]
[1756835262548,0.3147,4309.4,4308.8,0.308]
[1756835262949,0.3147,4309.9,4308.8,0.308]
[1756835263249,0.59251395,4309.8,4308.9,0.239]
[1756835263438,0.59251395,4309.7,4309.0,0.308]
[1756835263638,0.3147,4309.9,4309.0,0.308]
[1756835263842,0.5924491,4309.8,4309.0,0.308]
[1756835264150,0.3147,4309.9,4309.0,0.308]
[1756835264449,0.59238529,4309.8,4309.0,0.308]
[1756835264650,0.3147,4309.9,4309.2,3.2078]
[1756835264949,3.2078,4310.9,4309.9,0.308]
[1756835265146,0.90694127,4310.8,4309.9,0.308]
[1756835265339,0.59224127,4310.7,4309.9,0.308]
[1756835266950,0.3147,4310.6,4309.9,0.547]
[1756835267142,0.3147,4310.6,4309.9,0.308]
[1756835267340,0.1243,4310.5,4309.8,3.2078]
[1756835267546,0.439,4310.5,4309.4,0.308]
[1756835267851,0.678,4310.5,4309.4,0.308]
[1756835268145,0.3147,4310.3,4309.4,0.308]
[1756835268345,0.3147,4310.1,4309.3,3.2078]
[1756835268547,0.23203001,4310.3,4309.3,3.2078]
[1756835268745,0.5923427,4310.2,4309.3,3.2078]
[1756835268947,0.9070427,4310.1,4309.3,3.2078]
[1756835269146,0.3147,4310.2,4309.3,3.2078]
[1756835269448,0.3147,4310.0,4309.3,3.2078]
[1756835269651,3.2078,4310.4,4309.3,3.2078]
[1756835269854,0.3147,4310.2,4309.3,3.2078]
[1756835270047,0.3147,4310.0,4309.4,0.308]
[1756835271252,0.1243,4310.0,4309.3,3.2078]
[1756835271852,0.3147,4310.3,4309.4,0.308]
[1756835272152,0.59239778,4310.2,4309.4,0.308]
[1756835272354,0.3147,4310.0,4309.4,0.308]
[1756835273649,0.239,4310.5,4309.5,0.30675274]
[1756835273948,0.3147,4310.3,4309.6,0.30675274]
[1756835274248,0.5923794,4310.2,4309.7,0.30673856]
[1756835274448,3.2078,4310.4,4309.9,0.308]
[1756835274646,0.59242724,4310.3,4310.0,3.51453856]
[1756835274846,3.2078,4310.9,4310.2,0.308]
[1756835275050,0.90707313,4310.8,4310.3,0.30673856]
[1756835275246,3.2078,4310.9,4310.4,0.30673856]
[1756835275454,3.2078,4310.9,4310.5,0.30673856]
[1756835275652,3.2078,4310.9,4310.6,0.30673856]
[1756835275854,3.2078,4310.9,4310.1,0.308]
[1756835276048,3.2078,4310.9,4310.2,0.30659891]
[1756835276354,3.2078,4310.9,4310.4,0.308]
[1756835276553,0.3147,4311.2,4310.6,0.308]
[1756835276857,0.90691534,4311.1,4310.8,0.308]
[1756835277048,3.2078,4311.4,4310.8,0.308]
[1756835277252,0.59221089,4311.3,4311.0,0.308]
[1756835277458,3.2078,4311.4,4310.6,0.308]
[1756835277648,3.2078,4311.4,4310.8,0.308]
[1756835277848,0.3147,4311.3,4311.0,0.308]
[1756835278051,3.2078,4311.4,4311.0,0.308]
[1756835278542,0.3147,4311.3,4311.0,0.308]
[1756835278848,3.5225,4311.4,4310.6,0.308]
[1756835279150,3.5225,4311.4,4310.8,0.308]
[1756835279350,3.5225,4311.4,4310.9,0.3062007]
[1756835279552,3.5225,4311.4,4311.1,0.308]
[1756835279751,3.5225,4311.4,4311.3,0.308]
[1756835280349,0.3147,4311.3,4310.9,0.308]
[1756835280655,0.3147,4311.3,4311.1,0.308]
[1756835280853,0.3147,4311.3,4311.2,0.30599636]
[1756835281450,0.523,4311.3,4311.2,0.49969636]
[1756835281644,0.7336,4311.3,4311.2,0.49969636]
[1756835282251,0.7336,4311.3,4311.2,0.30599636]
[1756835282449,0.7336,4311.3,4310.7,0.239]
[1756835282651,0.7336,4311.3,4310.8,0.30612038]
[1756835282851,0.3147,4311.2,4310.9,0.30612038]
[1756835283053,0.7336,4311.1,4311.0,0.30612038]
[1756835283451,0.7336,4311.1,4311.0,1.00132038]
[1756835283653,0.00348149,4311.6,4311.0,1.00132038]
[1756835283844,0.52648149,4311.6,4311.5,0.3872]
[1756835284043,0.52648149,4311.6,4311.5,0.6952]
[1756835284044,0.00348149,4311.6,4311.5,0.6952]
[1756835284246,0.00348149,4311.6,4311.5,1.00344273]
[1756835284553,0.52648149,4311.6,4311.5,1.00344273]
[1756835284752,0.73708149,4311.6,4311.5,0.69544273]
[1756835285049,0.21178149,4311.6,4311.5,1.00341347]
[1756835285654,0.52648149,4311.6,4311.5,1.00341347]
[1756835286152,2.066334,4314.3,4311.5,4.65645346]
[1756835286153,0.3147,4313.0,4311.5,4.65645346]
[1756835286357,0.3147,4313.1,4312.4,0.308]
[1756835286553,3.2078,4313.2,4312.1,3.2078]
[1756835286554,0.3147,4312.9,4312.5,0.30821347]
[1756835286754,0.1243,4313.0,4312.1,3.4468]
[1756835286953,0.1243,4313.0,4312.2,0.30767755]
[1756835286954,0.3147,4312.9,4312.2,0.30767755]
[1756835287153,0.3147,4312.9,4312.1,3.2078]
[1756835287462,0.3147,4312.7,4312.2,0.30741438]
[1756835287648,0.23188,4312.9,4312.1,3.21128149]
[1756835287852,0.3147,4312.8,4312.2,0.30734757]
[1756835288158,0.3147,4312.8,4312.1,3.21128149]
[1756835288351,3.2078,4312.6,4312.1,0.00348149]
[1756835288548,0.439,4312.5,4312.1,0.00348149]
[1756835289453,0.3147,4312.3,4312.1,0.00348149]
[1756835290756,0.239,4312.2,4312.1,0.00348149]
[1756835290954,0.1243,4312.5,4312.1,0.00348149]
[1756835291155,0.3019,4312.5,4312.1,0.00348149]
[1756835291355,0.3019,4312.3,4312.1,0.00348149]
[1756835292456,0.239,4312.2,4312.1,0.00348149]
[1756835292661,0.5409,4312.2,4312.1,0.00348149]
[1756835296061,5.06258804,4312.2,4311.0,3.2078]
[1756835296262,0.3019,4311.8,4311.1,0.30801448]
[1756835296459,0.239,4311.7,4311.0,3.2078]
[1756835296654,0.3019,4311.6,4311.1,0.30818333]
[1756835296863,0.3019,4311.6,4311.0,3.2078]
[1756835297163,0.116,4311.5,4311.1,0.30810072]
[1756835297353,0.3019,4311.4,4311.0,3.2078]
[1756835297553,0.116,4311.5,4311.0,3.2078]
[1756835298367,0.239,4311.7,4311.0,3.2078]
[1756835298368,0.3019,4311.6,4311.0,3.2078]
[1756835298565,0.239,4311.5,4311.0,3.2078]
[1756835298753,0.3019,4311.4,4311.0,3.5236]
[1756835298959,0.239,4311.5,4311.0,3.5236]
[1756835299173,0.3019,4311.4,4311.0,3.5236]
[1756835299464,0.239,4311.5,4311.1,0.62388061]
[1756835299665,0.3019,4311.4,4311.1,0.3158]
[1756835299856,0.239,4311.5,4311.1,0.3158]
[1756835300261,0.3019,4311.4,4311.1,0.3158]
[1756835300560,0.239,4311.5,4311.1,0.3158]
[1756835300963,0.3019,4311.4,4311.1,0.3158]
[1756835301161,0.239,4311.5,4311.1,0.3158]
[1756835301361,0.5115,4311.2,4311.1,0.7212]
[1756835301563,0.239,4311.6,4311.1,1.02957792]
[1756835301767,0.7505,4311.6,4311.5,0.4054]
[1756835301969,0.7505,4311.6,4311.5,0.7212]
[1756835302663,0.2096,4311.6,4311.5,0.7212]
[1756835302864,3.2078,4311.9,4311.6,0.3158]
[1756835303066,3.4174,4311.9,4311.8,0.2096]
[1756835303267,0.7146,4311.9,4311.8,0.2096]
[1756835304069,3.2078,4312.4,4311.1,0.3158]
[1756835304070,0.3019,4311.8,4311.1,0.3158]
[1756835304272,0.239,4312.1,4311.2,0.71398096]
[1756835304468,0.5934446,4312.0,4311.3,0.62438096]
[1756835304669,0.7146,4311.5,4311.4,1.02978096]
[1756835305167,3.2078,4312.4,4311.4,0.71398096]
[1756835305168,0.3019,4312.0,4311.4,0.71398096]
[1756835305468,3.2078,4312.4,4311.0,3.2078]
[1756835305469,0.5115,4311.9,4311.8,0.7212]
[1756835306171,0.5115,4311.9,4311.8,1.03017824]
[1756835306363,0.5115,4311.9,4311.8,0.7212]
[1756835306563,0.7146,4311.9,4311.8,0.7212]
[1756835306763,1.30835382,4311.9,4311.8,0.4054]
[1756835307660,1.30835382,4311.9,4311.8,0.7212]
[1756835307863,1.30835382,4311.9,4311.8,1.03035989]
[1756835308467,1.30835382,4311.9,4311.8,0.51875989]
[1756835308671,0.3019,4311.8,4310.8,0.5548]
[1756835308965,0.7146,4311.8,4311.7,0.2096]
[1756835309266,0.7146,4311.8,4311.7,0.7212]
[1756835309864,3.2078,4311.9,4311.8,0.3158]
[1756835310161,4.21447355,4311.9,4311.8,0.2096]
[1756835310472,4.51637355,4311.9,4311.8,0.2096]
[1756835311264,4.51637355,4311.9,4311.5,0.3158]
[1756835311465,0.3019,4311.7,4311.6,0.29799656]
[1756835311670,0.7146,4311.7,4311.6,0.50759656]
[1756835314864,3.2078,4311.9,4311.6,1.01919656]
[1756835315064,0.59410311,4311.8,4311.7,0.3158]
[1756835315269,1.30870311,4311.8,4311.7,0.7212]
[1756835315465,1.30870311,4311.8,4311.7,0.4054]
[1756835315864,1.30870311,4311.8,4311.7,0.7301447]
[1756835316064,0.89600311,4311.8,4311.7,1.0459447]
[1756835316264,0.59410311,4311.8,4311.7,1.0459447]
[1756835316467,1.10560311,4311.8,4311.7,1.0459447]
[1756835316667,1.30870311,4311.8,4311.7,0.7301447]
[1756835316866,1.30870311,4311.8,4311.7,0.3247447]
[1756835318273,1.30870311,4311.8,4311.7,1.0459447]
[1756835318474,0.59410311,4311.8,4311.7,5.0459447]
[1756835318668,3.4468,4312.5,4311.8,0.3158]
[1756835318866,3.4174,4312.5,4312.4,0.7212]
[1756835319062,4.31415684,4312.5,4312.4,0.7212]
[1756835319267,4.51725684,4312.5,4312.4,0.4054]